Workbook

Sheet Sheet1
B2: I KESİT DEĞERLERİ (inş.müh. Gürcan BERBEROĞLU tel : 0532 366 02 04 www.betoncelik.com )
P3: Dikkat sadece sarı hücrelere data girilecek.
L5: 150 | O5: mm
M6: y | W6: enkesit değerleri
D7: mm | W7: A = | Y7: =(L5*F8+G13*N11+F20*L22)/100 -> 80.5 | AC7: cm² | AZ7: A = enkesit alanı
F8: 20 | H8: mm | T8: mm | W8: Ix = | Y8: =(L5*F8^3/12+L5*F8*((((L5*F8*F8/2+G13*N11*(G13/2+F8)+L22*F20*(F20/2+G13+F8))/(L5*F8+G13*N11+L22*F20)))-F8/2)^2+N11*G13^3/12+G13*N11*((((L5*F8*F8/2+G13*N11*(G13/2+F8)+L22*F20*(F20/2+G13+F8))/(L5*F8+G13*N11+L22*F20)))-F8-G13/2)^2+L22*F20^3/12+F20*L22*((+F8+G13+F20-(((L5*F8*F8/2+G13*N11*(G13/2+F8)+L22*F20*(F20/2+G13+F8))/(L5*F8+G13*N11+L22*F20))))-F20/2)^2)/10000 -> 9257.587021 | AC8: cm4 | AZ8: Ix = x eksenine göre atalet momenti
D9: 223.8157895 | W9: Iy = | Y9: =(F8*L5^3/12+L5*F8*(MAX(L5/2,L22/2)-MAX(L5,L22)/2)^2+G13*N11^3/12+G13*N11*(MAX(L5/2,L22/2)-MAX(L5,L22)/2)^2+F20*L22^3/12+L22*F20*(MAX(L5/2,L22/2)-MAX(L5,L22)/2)^2)/10000 -> 1991.463958 | AC9: cm4 | AI9: 1 | AJ9: =D9*L5 -> 33572.36842 | AM9: =D9*L5*D9/2 -> 3757013.071 | AZ9: Iy = y eksenine göre atalet momenti
T10: =(L5*F8*F8/2+G13*N11*(G13/2+F8)+F20*L22*(F20/2+G13+F8))/(L5*F8+G13*N11+F20*L22) -> 145.3881988 | W10: ix = | Y10: =SQRT(Y8/Y7) -> 10.7238557 | AB10: cm | AI10: 2 | AJ10: =L5*F8+(D9-F8)*N11 -> 3305.723684 | AM10: =L5*F8*(D9-F8/2)+(D9-F8)*N11*(D9-F8)/2 -> 672603.0255 | AZ10: ix = x eksenine göre atalet yarıçapı
G11: mm | I11: plastik | N11: 1.5 | P11: mm | W11: iy = | Y11: =SQRT(Y9/Y7) -> 4.973799625 | AB11: cm | AI11: 3 | AJ11: =L5*F8+G13*N11+(D9-G13-F8)*L22 -> 4025 | AM11: =L5*F8*(D9-F8/2)+G13*N11*(D9-F8-G13/2)+(D9-G13-F8)*L22*(D9-G13-F8)/2 -> 673975.3289 | AZ11: iy = y eksenine göre atalet yarıçapı
I12: tarafsız eks. | W12: Wexc = | Z12: =+Y8/((((L5*F8*F8/2+G13*N11*(G13/2+F8)+L22*F20*(F20/2+G13+F8))/(L5*F8+G13*N11+L22*F20)))/10) -> 636.7495505 | AD12: cm3 | AI12: 1 | AJ12: =(F8-D9)*L5+G13*N11+F20*L22 -> -25522.36842 | AM12: =(F8-D9)*L5*(F8-D9)/2+G13*N11*(G13/2+F8-D9)+F20*L22*(F20/2+G13+F8-D9) -> 3125670.966 | AZ12: Wexc = x eksenine göre üstyarı mukavemet momenti
G13: 200 | W13: Weyc = | Z13: =+Y9/(MAX(L5/2,L22/2)/10) -> 209.6277851 | AD13: cm3 | AI13: 2 | AJ13: =F20*L22+(G13+F8-D9)*N11 -> 4744.276316 | AM13: =F20*L22*(D16-F20/2)+(G13+F8-D9)*N11*(G13+F8-D9)/2 -> 41260.92019 | AZ13: Wext = x eksenine göre altyarı mukavemet momenti
D14: mm | H14: x | R14: x | T14: mm | W14: Wext = | Z14: =+Y8/((+F8+G13+F20-(((L5*F8*F8/2+G13*N11*(G13/2+F8)+L22*F20*(F20/2+G13+F8))/(L5*F8+G13*N11+L22*F20))))/10) -> 929.3664913 | AD14: cm3 | AI14: 3 | AJ14: =(F20+G13+F8-D9)*L22 -> 4025 | AM14: =(F20+G13+F8-D9)*L22*(F20+G13+F8-D9)/2 -> 42633.22368 | AZ14: Weyc = y eksenine göre sol yarı mukavemet momenti
I15: ağr.mrk. | W15: Weyt = | Z15: =+Z13 -> 209.6277851 | AD15: cm3 | AJ15: =IF(D9<=F8,AJ9,IF(AND(F8<D9,D9<=(F8+G13)),AJ10,IF(AND((F8+G13)<D9,D9<=(F8+G13+F20)),AJ11,"hatalı"))) -> 4025 | AM15: =IF(D9<=F8,AM9,IF(AND(F8<D9,D9<=(F8+G13)),AM10,IF(AND((F8+G13)<D9,D9<=(F8+G13+F20)),AM11,"hatalı"))) -> 673975.3289 | AZ15: Weyt = y eksenine göre sağ yarı mukavemet momenti
D16: =+F20+G13+F8-D9 -> 21.18421053 | T16: =+F20+G13+F8-T10 -> 99.61180124 | W16: Wpx = | Z16: =+AM17/1000 -> 716.6085526 | AD16: cm3 | AJ16: =IF(D9<=F8,AJ12,IF(AND(F8<D9,D9<=(F8+G13)),AJ13,IF(AND((F8+G13)<D9,D9<=(F8+G13+F20)),AJ14,"hatalı"))) -> 4025 | AM16: =IF(D9<=F8,AM12,IF(AND(F8<D9,D9<=(F8+G13)),AM13,IF(AND((F8+G13)<D9,D9<=(F8+G13+F20)),AM14,"hatalı"))) -> 42633.22368 | AZ16: Wpx = x eksenine göre plastik mukavemet momenti
W17: Wpy = | Z17: =(2*L5/2*F8*(L5/2/2)+2*L22/2*F20*(L22/2/2)+2*(G13*N11/2*(N11/2/2)))/1000 -> 338.2375 | AD17: cm3 | AJ17: =+AJ15-AJ16 -> 3.637978807e-12 | AM17: =+AM16+AM15 -> 716608.5526 | AZ17: Wpy = y eksenine göre plastik mukavemet momenti
W18: sa = Fy = | Z18: 275 | AB18: N/mm² | AZ18: sa = Fy = malzeme akma gerilmesi
W19: Mnx = | Y19: =+Z18*MIN(Z12,Z14)/1000 -> 175.1061264 | AB19: KNm | AZ19: Mnx = x eksenine göre elastik moment kapasitesi
F20: 25 | H20: mm | W20: Mpx = | Y20: =+Z18*Z16/1000 -> 197.067352 | AB20: KNm | AZ20: Mpx = x eksenine göre plastik moment kapasitesi
L21: y | W21: bf = | Y21: =+Y20/Y19 -> 1.12541666 | AZ21: bf = biçim faktörü
L22: 190 | O22: mm
AZ23: Not : sarı hücrelere data girmek mecburidir.Sarı hücreye sıfır girmeyiniz.
K26: 350 | N26: mm
K28: 300 | N28: mm
L29: y | AJ29: 1 | AK29: =C33*K28 -> 128230.7692 | AN29: =C33*K28*C33/2 -> 27405216.96
Z30: enkesit değerleri | AJ30: 2 | AK30: =K28*S31+(C33-S31)*K26 -> 148352.5641 | AN30: =K28*S31*(C33-S31/2)+(C33-S31)*K26*(C33-S31)/2 -> 31454083.25
C31: mm | E31: mm | S31: 25 | U31: mm | Z31: A = | AB31: =(K28*S31+K26*S32+T36*M34+2*N39*R36+K47*S44+K49*S43)/100 -> 626.5 | AF31: cm² | AJ31: 3 | AK31: =K28*S31+K26*S32+(C33-S31-S32)*M34 -> 23586.53846 | AN31: =K28*S31*(C33-S31/2)+K26*S32*(C33-S31-S32/2)+(C33-S31-S32)*M34*(C33-S31-S32)/2 -> 8220409.887
S32: 30 | U32: mm | Z32: Ix = | AB32: =(K28*S31^3/12+K28*S31*(E33-S31/2)^2+K26*S32^3/12+K26*S32*(E33-S31-S32/2)^2+K47*S44^3/12+K47*S44*(E40-S44/2)^2+K49*S43^3/12+K49*S43*(E40-S44-S43/2)^2+M34*T36^3/12+M34*T36*(E33-S31-S32-T36/2)^2+2*(N39*R36^3/12+N39*R36*(E33-S31-S32-Q33-R36/2)^2))/10000 -> 915669.2081 | AF32: cm4 | AJ32: 4 | AK32: =K28*S31+K26*S32+(C33-S31-S32)*M34+2*(C33-S31-S32-Q33)*N39 -> 31325 | AN32: =K28*S31*(C33-S31/2)+K26*S32*(C33-S31-S32/2)+(C33-S31-S32)*M34*(C33-S31-S32)/2+2*(C33-S31-S32-Q33)*N39*(C33-S31-S32-Q33)/2 -> 9467988.782
C33: 427.4358974 | E33: =(K28*S31*S31/2+K26*S32*(S31+S32/2)+T36*M34*(T36/2+S32+S31)+2*N39*R36*(R36/2+Q33+S32+S31)+K49*S43*(V36-S44-S43/2)+K47*S44*(V36-S44/2))/(K28*S31+K26*S32+T36*M34+2*N39*R36+K47*S44+K49*S43) -> 469.9940144 | Q33: 50 | S33: mm | Z33: Iy = | AB33: =(S31*K28^3/12+S32*K26^3/12+S43*K49^3/12+S44*K47^3/12+T36*M34^3/12+2*(R36*I39^3/12+I39*R36*(I39/2+M34/2)^2))/10000 -> 48872.74083 | AF33: cm4 | AJ33: 5 | AK33: =K28*S31+K26*S32+(Q33+R36)*M34+2*R36*N39+(C33-S31-S32-Q33-R36)*M34 -> 37986.53846 | AN33: =K28*S31*(C33-S31/2)+K26*S32*(C33-S31-S32/2)+(Q33+R36)*M34*(C33-S31-S32-Q33/2)+2*R36*N39*(C33-S31-S32-Q33-R36/2)+(C33-S31-S32-Q33-R36)*M34*(C33-R36-Q33-S32-S31)/2 -> 11468486.81
M34: 15 | O34: mm | V34: mm | Z34: ix = | AB34: =SQRT(AB32/AB31) -> 38.23039343 | AE34: cm | AJ34: 6 | AK34: =K28*S31+K26*S32+T36*M34+2*R36*N39+(C33-T36-S32-S31)*K49 -> -217882.0513 | AN34: =K28*S31*(C33-S31/2)+K26*S32*(C33-S31-S32/2)+T36*M34*(C33-S31-S32-T36/2)+2*R36*N39*(C33-S31-S32-Q33-R36/2)+(C33-T36-S32-S31)*K49*(C33-T36-S32-S31)/2 -> 76037028.27
G35: plastik | Z35: iy = | AB35: =SQRT(AB33/AB31) -> 8.832279623 | AE35: cm | AJ35: 7 | AK35: =K28*S31+K26*S32+T36*M34+2*N39*R36+K49*S43+(C33-S31-S32-T36-S43)*K47 -> -190503.8462 | AN35: =K28*S31*(C33-S31/2)+K26*S32*(C33-S31-S32/2)+T36*M34*(C33-S31-S32-T36/2)+2*N39*R36*(C33-S31-S32-Q33-R36/2)+K49*S43*(C33-S31-S32-T36-S43/2)+(C33-S31-S32-T36-S43)*K47*(C33-S31-S32-T36-S43)/2 -> 68541367.11
G36: tarafsız eks. | R36: 600 | T36: 900 | V36: =+T36+S32+S43+S44+S31 -> 990 | Z36: Wexc = | AC36: =AB32/(E33/10) -> 19482.57169 | AG36: cm3 | AJ36: 1 | AK36: =(S31-C33)*K28+K26*S32+T36*M34+2*N39*R36+K49*S43+K47*S44 -> -65580.76923 | AN36: =(S31-C33)*K28*(S31/2-C33)+K26*S32*(S32/2+S31-C33)+T36*M34*(T36/2+S32+S31-C33)+2*N39*R36*(R36/2+Q33+S32+S31-C33)+K49*S43*(S43/2+T36+S32+S31-C33)+K47*S44*(S44/2+S43+T36+S32+S31-C33) -> 55873815.34
H37: x | P37: x | Z37: Weyc = | AC37: =+AB33/(MAX(K26/2,K49/2)/10) -> 1954.909633 | AG37: cm3 | AJ37: 2 | AK37: =(S32+S31-C33)*K26+T36*M34+2*N39*R36+K49*S43+K47*S44 -> -85702.5641 | AN37: =(S32+S31-C33)*K26*(S32+S31-C33)/2+T36*M34*(T36/2+S32+S31-C33)+2*N39*R36*(R36/2+Q33+S32+S31-C33)+K49*S43*(S43/2+T36+S32+S31-C33)+K47*S44*(V36-S44/2-C33) -> 34120349.28
C38: mm | E38: mm | H38: ağ.mrk. | Z38: Wext = | AC38: =+AB32/(E40/10) -> 17608.82054 | AG38: cm3 | AJ38: 3 | AK38: =(T36+S32+S31-C33)*M34+2*N39*R36+K47*S44+K49*S43 -> 39063.46154 | AN38: =(T36+S32+S31-C33)*M34*(T36+S32+S31-C33)/2+2*N39*R36*(R36/2+Q33+S32+S31-C33)+K47*S44*(V36-S44/2-C33)+K49*S43*(V36-S44-S43/2-C33) -> 10886675.91
I39: =+N39 -> 12 | N39: 12 | P39: mm | Z39: Weyt = | AC39: =+AC37 -> 1954.909633 | AG39: cm3 | AJ39: 4 | AK39: =2*(R36+Q33+S32+S31-C33)*N39+(T36+S32+S31-C33)*M34+K49*S43+K47*S44 -> 31325 | AN39: =2*(R36+Q33+S32+S31-C33)*N39*(R36+Q33+S32+S31-C33)/2+(T36+S32+S31-C33)*M34*(T36+S32+S31-C33)/2+K49*S43*(V36-S44-S43/2-C33)+K47*S44*(V36-S44/2-C33) -> 12134254.81
C40: =+V36-C33 -> 562.5641026 | E40: =+V36-E33 -> 520.0059856 | Z40: Wpx = | AC40: =+AN45/1000 -> 21602.24359 | AG40: cm3 | AJ40: 5 | AK40: =(T36+S32+S31-C33)*M34+K49*S43+K47*S44 -> 24663.46154 | AN40: =(T36+S32+S31-C33)*M34*(T36+S32+S31-C33)/2+K49*S43*(S43/2+T36+S32+S31-C33)+K47*S44*(V36-S44/2-C33) -> 11209752.84
Q41: =+T36-Q33-R36 -> 250 | S41: mm | Z41: Wpy = | AC41: =(2*K28/2*S31*(K28/2/2)+2*K26/2*S32*(K26/2/2)+2*K47/2*S44*(K47/2/2)+2*K49/2*S43*(K49/2/2)+2*(T36*M34/2*(M34/2/2))+2*(R36*I39*(I39/2+M34/2)))/1000 -> 3735.65 | AG41: cm3 | AJ41: 6 | AK41: =(S43+T36+S32+S31-C33)*K49+K47*S44 -> 280532.0513 | AN41: =(S43+T36+S32+S31-C33)*K49*(S43+T36+S32+S31-C33)/2+K47*S44*(V36-S44/2-C33) -> 78703294.3
Z42: sa = Fy = | AC42: 275 | AE42: N/mm² | AJ42: 7 | AK42: =(V36-C33)*K47 -> 253153.8462 | AN42: =(V36-C33)*K47*(V36-C33)/2 -> 71207633.14
S43: 20 | U43: mm | Z43: Mnx = | AB43: =+AC42*MIN(AC36,AC38)/1000 -> 4842.425649 | AE43: KNm | AK43: =IF(C33<=S31,AK29,IF(AND(S31<C33,C33<=(S31+S32)),AK30,IF(AND((S31+S32)<C33,C33<=(S31+S32+Q33)),AK31,IF(AND((S31+S32+Q33)<C33,C33<=(S31+S32+Q33+R36)),AK32,IF(AND((S31+S32+Q33+R36)<C33,C33<=(S31+S32+T36)),AK33,IF(AND((S31+S32+T36)<C33,C33<=(S31+S32+T36+S43)),AK34,IF(AND((S31+S32+T36+S43)<C33,C33<=V36),AK35,"hatalı"))))))) -> 31325 | AN43: =IF(C33<=S31,AN29,IF(AND(S31<C33,C33<=(S31+S32)),AN30,IF(AND((S31+S32)<C33,C33<=(S31+S32+Q33)),AN31,IF(AND((S31+S32+Q33)<C33,C33<=(S31+S32+Q33+R36)),AN32,IF(AND((S31+S32+Q33+R36)<C33,C33<=(S31+S32+T36)),AN33,IF(AND((S31+S32+T36)<C33,C33<=(S31+S32+T36+S43)),AN34,IF(AND((S31+S32+T36+S43)<C33,C33<=V36),AN35,"hatalı"))))))) -> 9467988.782
S44: 15 | U44: mm | Z44: Mpx = | AB44: =+AC42*AC40/1000 -> 5940.616987 | AE44: KNm | AK44: =IF(C33<=S31,AK36,IF(AND(S31<C33,C33<=(S31+S32)),AK37,IF(AND((S31+S32)<C33,C33<=(S31+S32+Q33)),AK38,IF(AND((S31+S32+Q33)<C33,C33<=(S31+S32+Q33+R36)),AK39,IF(AND((S31+S32+Q33+R36)<C33,C33<=(S31+S32+T36)),AK40,IF(AND((S31+S32+T36)<C33,C33<=(S31+S32+T36+S43)),AK41,IF(AND((S31+S32+T36+S43)<C33,C33<=V36),AK42,"hatalı"))))))) -> 31325 | AN44: =IF(C33<=S31,AN36,IF(AND(S31<C33,C33<=(S31+S32)),AN37,IF(AND((S31+S32)<C33,C33<=(S31+S32+Q33)),AN38,IF(AND((S31+S32+Q33)<C33,C33<=(S31+S32+Q33+R36)),AN39,IF(AND((S31+S32+Q33+R36)<C33,C33<=(S31+S32+T36)),AN40,IF(AND((S31+S32+T36)<C33,C33<=(S31+S32+T36+S43)),AN41,IF(AND((S31+S32+T36+S43)<C33,C33<=V36),AN42,"hatalı"))))))) -> 12134254.81
L45: y | Z45: bf = | AB45: =+AB44/AB43 -> 1.22678538 | AK45: =+AK43-AK44 -> 0 | AN45: =+AN43+AN44 -> 21602243.59
K47: 450 | N47: mm
K49: 500 | N49: mm
L53: 1100 | O53: mm
L55: 800 | O55: mm
L57: 600 | O57: mm
M59: y
V60: 15 | X60: mm | AL60: 1 | AM60: =C63*L57 -> 758076.9231 | AP60: =C63*L57*C63/2 -> 478900517.8
C61: mm | V61: 25 | X61: mm | AL61: 2 | AM61: =L57*V60+(C63-V60)*L55 -> 1007769.231 | AP61: =L57*V60*(C63-V60/2)+(C63-V60)*L55*(C63-V60)/2 -> 634766139.1
E62: mm | V62: 35 | X62: mm | AL62: 3 | AM62: =L57*V60+L55*V61+(C63-V60-V61)*L53 -> 1374807.692 | AP62: =L57*V60*(C63-V60/2)+L55*V61*(C63-V60-V61/2)+(C63-V60-V61)*L53*(C63-V60-V61)/2 -> 859294859.5
C63: 1263.461538 | R63: 50 | T63: mm | AL63: 4 | AM63: =L57*V60+L55*V61+L53*V62+(C63-V60-V61-V62)*N64 -> 85326.92308 | AP63: =L57*V60*(C63-V60/2)+L55*V61*(C63-V60-V61/2)+L53*V62*(C63-V60-V61-V62/2)+(C63-V60-V61-V62)*N64*(C63-V60-V61-V62)/2 -> 93045710.06
E64: =(L57*V60*V60/2+L55*V61*(V60+V61/2)+L53*V62*(V60+V61+V62/2)+W70*N64*(W70/2+V62+V61+V60)+2*P73*U70*(U70/2+R63+V62+V61+V60)+2*P75*S70*(S70/2+R65+R63+V62+V61+V60)+L90*V81*(Y70-V83-V82-V81/2)+L88*V82*(Y70-V83-V82/2)+L86*V83*(Y70-V83/2))/(L57*V60+L55*V61+L53*V62+L90*V81+L88*V82+L86*V83+2*(S70*P75+U70*P73)+W70*N64) -> 1117.707928 | N64: 15 | P64: mm | AL64: 5 | AM64: =L57*V60+L55*V61+L53*V62+N64*R63+(C63-V60-V61-V62-R63)*(2*P73+N64) -> 112650 | AP64: =L57*V60*(C63-V60/2)+L55*V61*(C63-V60-V61/2)+L53*V62*(C63-V60-V61-V62/2)+N64*R63*(C63-V60-V61-V62-R63/2)+(C63-V60-V61-V62-R63)*(2*P73+N64)*(C63-V60-V61-V62-R63)/2 -> 108598846.2
R65: =(U70-S70)/2 -> 200 | T65: mm | AC65: enkesit değerleri | AL65: 6 | AM65: =L57*V60+L55*V61+L53*V62+R63*N64+R65*(N64+2*P73)+(C63-V60-V61-V62-R63-R65)*(2*P75+2*P73+N64) -> 131419.2308 | AP65: =L57*V60*(C63-V60-V61-V62/2)+L55*V61*(C63-V60-V61/2)+L53*V62*(C63-V60/2)+R63*N64*(C63-V60-V61-V62-R63/2)+R65*(N64+2*P73)*(C63-V60-V61-V62-R63-R65/2)+(C63-V60-V61-V62-R63-R65)*(2*P75+2*P73+N64)*(C63-V60-V61-V62-R63-R65)/2 -> 118880946.7
AC66: A = | AE66: =(L57*V60+L55*V61+L53*V62+L90*V81+L88*V82+L86*V83+2*(S70*P75+U70*P73)+W70*N64)/100 -> 2573 | AI66: cm² | AL66: 7 | AM66: =L57*V60+L55*V61+L53*V62+R63*N64+R65*(2*P73+N64)+S70*(2*P75+2*P73+N64)+(C63-S70-R65-R63-V62-V61-V60)*(2*P73+N64) -> 128650 | AP66: =L57*V60*(C63-V60/2)+L55*V61*(C63-V60-V61/2)+L53*V62*(C63-V60-V61-V62/2)+R63*N64*(C63-V60-V61-V62-R63/2)+R65*(2*P73+N64)*(C63-V60-V61-V62-R63-R65/2)+S70*(2*P75+2*P73+N64)*(C63-V60-V61-V62-R63-R65-S70/2)+(C63-S70-R65-R63-V62-V61-V60)*(2*P73+N64)*(C63-S70-R65-R63-V62-V61-V60)/2 -> 117214230.8
AC67: Ix = | AE67: =(L57*V60^3/12+L57*V60*(E64-V60/2)^2+L55*V61^3/12+L55*V61*(E64-V60-V61/2)^2+L53*V62^3/12+L53*V62*(E64-V60-V61-V62/2)^2+L86*V83^3/12+L86*V83*(E76-V83/2)^2+L88*V82^3/12+L88*V82*(E76-V83-V82/2)^2+L90*V81^3/12+L90*V81*(E76-V83-V82-V81/2)^2+2*(P75*S70^3/12+P75*S70*(E64-V60-V61-V62-R63-R65-S70/2)^2)+2*(P73*U70^3/12+P73*U70*(E64-V60-V61-V62-R63-U70/2)^2)+N64*W70^3/12+N64*W70*(E64-V60-V61-V62-W70/2)^2)/10000 -> 17225512.24 | AI67: cm4 | AL67: 8 | AM67: =L57*V60+L55*V61+L53*V62+S70*(2*P75)+U70*(2*P73)+(C63-V60-V61-V62)*N64 -> 130126.9231 | AP67: =L57*V60*(C63-V60/2)+L55*V61*(C63-V60-V61/2)+L53*V62*(C63-V60-V61-V62/2)+S70*(2*P75)*(C63-V60-V61-V62-R63-R65-S70/2)+U70*(2*P73)*(C63-V60-V61-V62-R63-U70/2)+(C63-V60-V61-V62)*N64*(C63-V60-V61-V62)/2 -> 117168787
G68: plastik | S68: mm | U68: mm | W68: mm | Y68: mm | AC68: Iy = | AE68: =(V60*L57^3/12+V61*L55^3/12+V62*L53^3/12+V81*L90^3/12+V82*L88^3/12+V83*L86^3/12+W70*N64^3/12+2*(U70*P73^3/12+U70*P73*(P73/2+N64/2)^2)+2*(S70*P75^3/12+P75*S70*(P75/2+P73+N64/2)^2))/10000 -> 2442292.132 | AI68: cm4 | AL68: 9 | AM68: =L57*V60+L55*V61+L53*V62+N64*W70+2*P73*U70+2*P75*S70+(C63-W70-V62-V61-V60)*L90 -> -839161.5385 | AP68: =L57*V60*(C63-V60/2)+L55*V61*(C63-V60-V61/2)+L53*V62*(C63-V60-V61-V62/2)+N64*W70*(C63-V60-V61-V62-W70/2)+2*P73*U70*(C63-V60-V61-V62-R63-U70/2)+2*P75*S70*(C63-V60-V61-V62-R63-R65-S70/2)+(C63-W70-V62-V61-V60)*L90*(C63-V60-V61-V62-W70)/2 -> 413547374.3
G69: tarafsız eks. | AC69: ix = | AE69: =SQRT(AE67/AE66) -> 81.82126312 | AH69: cm | AL69: 10 | AM69: =L57*V60+L55*V61+L53*V62+N64*W70+2*P73*U70+2*S70*P75+L90*V81+(C63-V60-V61-V62-W70-V81)*L88 -> -578546.1538 | AP69: =L57*V60*(C63-V60/2)+L55*V61*(C63-V60-V61/2)+L53*V62*(C63-V60-V61-V62/2)+N64*W70*(C63-V60-V61-V62-W70/2)+2*P73*U70*(C63-V60-V61-V62-R63-U70/2)+2*S70*P75*(C63-V60-V61-V62-R63-U70/2)+L90*V81*(C63-V60-V61-V62-W70-V81/2)+(C63-V60-V61-V62-W70-V81)*L88*(C63-V60-V61-V62-W70-V81)/2 -> 328646900.9
S70: 800 | U70: 1200 | W70: 1800 | Y70: =+W70+V62+V61+V60+V81+V82+V83 -> 1965 | AC70: iy = | AE70: =SQRT(AE68/AE66) -> 30.80909292 | AH70: cm | AL70: 11 | AM70: =L57*V60+L55*V61+L53*V62+N64*W70+2*P73*U70+2*P75*S70+L90*V81+L88*V82+(C63-V60-V61-V62-W70-V81-V82)*L86 -> -374084.6154 | AP70: =L57*V60*(C63-V60/2)+L55*V61*(C63-V60-V61/2)+L53*V62*(C63-V60-V61-V62/2)+N64*W70*(C63-V60-V61-V62-W70/2)+2*P73*U70*(C63-V60-V61-V62-R63-U70/2)+2*P75*S70*(C63-V60-V61-V62-R63-R65-S70/2)+L90*V81*(C63-V60-V61-V62-W70-V81/2)+L88*V82*(C63-V60-V61-V62-W70-V81-V82/2)+(C63-V60-V61-V62-W70-V81-V82)*L86*(C63-V60-V61-V62-W70-V81-V82)/2 -> 258972699.7
I71: x | Q71: x | AC71: Wexc = | AF71: =AE67/(E64/10) -> 154114.6108 | AJ71: cm3 | AL71: 1 | AM71: =(V60-C63)*L57+L55*V61+L53*V62+L90*V81+L88*V82+L86*V83+2*(S70*P75+U70*P73)+W70*N64 -> -500776.9231 | AP71: =(V60-C63)*L57*(V60-C63)/2+L55*V61*(V60+V61/2-C63)+L53*V62*(V60+V61+V62/2-C63)+L90*V81*(Y70-V83/2-C63)+L88*V82*(Y70-V83-V82/2-C63)+L86*V83*(Y70-V83-V82-V81/2-C63)+2*(S70*P75*(S70/2+R65+R63+V62+V61+V60-C63)+U70*P73*(U70/2+R63+V62+V61+V60-C63))+W70*N64*(W70/2+V62+V61+V60-C63) -> 444158113.9
H72: ağ.mrk. | AC72: Weyc = | AF72: =+AE68/(MAX(N61/2,L90/2)/10) -> 30528.65165 | AJ72: cm3 | AL72: 2 | AM72: =(V61+V60-C63)*L55+L53*V62+L90*V81+L88*V82+L86*V83+2*(S70*P75+U70*P73)+W70*N64 -> -750469.2308 | AP72: =(V61+V60-C63)*L55*(V61+V60-C63)/2+L53*V62*(V62/2+V61+V60-C63)+L90*V81*(Y70-V83-V82-V81/2-C63)+L88*V82*(Y70-V83-V82/2-C63)+L86*V83*(Y70-V83/2-C63)+2*(S70*P75*(S70/2+R65+R63+V62+V61+V60-C63)+U70*P73*(U70/2+R63+V62+V61+V60-C63))+W70*N64*(W70/2+V62+V61+V60-C63) -> 597263735.2
C73: mm | I73: =+P73 -> 12 | P73: 12 | R73: mm | AC73: Wext = | AF73: =+AE67/(E76/10) -> 203300.7604 | AJ73: cm3 | AL73: 3 | AM73: =(V62+V61+V60-C63)*L53+L90*V81+L88*V82+L86*V83+2*(S70*P75+U70*P73)+W70*N64 -> -1117507.692 | AP73: =(V62+V61+V60-C63)*L53*(V62+V61+V60-C63)/2+L90*V81*(Y70-V83-V82-V81/2-C63)+L88*V82*(Y70-V83-V82/2-C63)+L86*V83*(Y70-V83/2-C63)+2*(S70*P75*(S70/2+R65+R63+V62+V61+V60-C63)+U70*P73*(U70/2+R63+V62+V61+V60-C63))+W70*N64*(W70/2+V62+V61+V60-C63) -> 821792455.6
E74: mm | AC74: Weyt = | AF74: =+AF72 -> 30528.65165 | AJ74: cm3 | AL74: 4 | AM74: =L90*V81+L88*V82+L86*V83+2*(S70*P75+U70*P73)+(W70+V62+V61+V60-C63)*N64 -> 171973.0769 | AP74: =L90*V81*(Y70-V83-V82-V81/2-C63)+L88*V82*(Y70-V83-V82/2-C63)+L86*V83*(Y70-V83/2-C63)+2*(S70*P75*(S70/2+R65+R63+V62+V61+V60-C63)+U70*P73*(U70/2+R63+V62+V61+V60-C63))+(W70+V62+V61+V60-C63)*N64*(W70+V62+V61+V60-C63)/2 -> 55543306.21
C75: =+Y70-C63 -> 701.5384615 | I75: =+P75 -> 10 | P75: 10 | R75: mm | AC75: Wpx = | AF75: =+AP84/1000 -> 196926.0577 | AJ75: cm3 | AL75: 5 | AM75: =(R65+R63+V62+V61+V60-C63)*(2*P73+N64)+S70*(2*P75+2*P73+N64)+R77*(2*P73+N64)+N64*R79+L90*V81+L88*V82+L86*V83 -> 144650 | AP75: =(R65+R63+V62+V61+V60-C63)*(2*P73+N64)*(R65+R63+V62+V61+V60-C63)/2+S70*(2*P75+2*P73+N64)*(S70/2+R65+R63+V62+V61+V60-C63)+R77*(2*P73+N64)*(R77/2+S70+R65+R63+V62+V61+V60-C63)+N64*R79*(R79/2+U70+R63+V62+V61+V60-C63)+L90*V81*(V81/2+W70+V62+V61+V60-C63)+L88*V82*(V82/2+V81+W70+V62+V61+V60-C63)+L86*V83*(Y70-V83/2-C63) -> 71096442.31
E76: =+Y70-E64 -> 847.2920715 | AC76: Wpy = | AF76: =2*(V60*L57/2*(L57/2/2)+V61*L55/2*(L55/2/2)+V62*L53/2*(L53/2/2)+L86/2*V83*(L86/2/2)+V82*L88/2*(L88/2/2)+V81*L90/2*(L90/2/2)+P75*S70*(P75/2+P73+N64/2)+U70*P73*(P73/2+N64/2)+W70*N64/2*N64/2/2)/1000 -> 57269.55 | AJ76: cm3 | AL76: 6 | AM76: =(S70+R65+R63+V62+V61+V60-C63)*(2*P75+2*P73+N64)+R77*(2*P73+N64)+R79*N64+L90*V81+L88*V82+L86*V83 -> 125880.7692 | AP76: =(S70+R65+R63+V62+V61+V60-C63)*(2*P75+2*P73+N64)*(S70+R65+R63+V62+V61+V60-C63)/2+R77*(2*P73+N64)*(R77/2+S70+R65+R63+V62+V61+V60-C63)+R79*N64*(R79/2+U70+R63+V62+V61+V60-C63)+L90*V81*(V81/2+W70+V62+V61+V60-C63)+L88*V82*(Y70-V83-V82/2-C63)+L86*V83*(Y70-V83/2-C63) -> 79903542.9
R77: =+R65 -> 200 | T77: mm | AC77: sa = Fy = | AF77: 275 | AH77: N/mm² | AL77: 7 | AM77: =(R77+S70+R65+R63+V62+V61+V60-C63)*(2*P73+N64)+R79*N64+L90*V81+L88*V82+L86*V83 -> 128650 | AP77: =(R77+S70+R65+R63+V62+V61+V60-C63)*(2*P73+N64)*(R77+S70+R65+R63+V62+V61+V60-C63)/2+R79*N64*(R79/2+R77+S70+R65+R63+V62+V61+V60-C63)+L90*V81*(V81/2+W70+V62+V61+V60-C63)+L88*V82*(Y70-V83-V82/2-C63)+L86*V83*(Y70-V83/2-C63) -> 79711826.92
AC78: Mnx = | AE78: =+AF77*MIN(AF71,AF73)/1000 -> 42381.51798 | AH78: KNm | AL78: 8 | AM78: =(R79+U70+R63+V62+V61+V60-C63)*N64+L90*V81+L88*V82+L86*V83 -> 127173.0769 | AP78: =(R79+U70+R63+V62+V61+V60-C63)*N64*(R79+U70+R63+V62+V61+V60-C63)/2+L90*V81*(V81/2+W70+V62+V61+V60-C63)+L88*V82*(Y70-V83-V82/2-C63)+L86*V83*(Y70-V83/2-C63) -> 79666383.14
R79: =+W70-R63-R65-S70-R77 -> 550 | T79: mm | AC79: Mpx = | AE79: =+AF77*AF75/1000 -> 54154.66587 | AH79: KNm | AL79: 9 | AM79: =(V81+W70+V62+V61+V60-C63)*L90+L88*V82+L86*V83 -> 1096461.538 | AP79: =(V81+W70+V62+V61+V60-C63)*L90*(V81+W70+V62+V61+V60-C63)/2+L88*V82*(Y70-V83-V82/2-C63)+L86*V83*(Y70-V83/2-C63) -> 376044970.4
AC80: bf = | AE80: =+AE79/AE78 -> 1.27778967 | AL80: 10 | AM80: =L86*V83+(Y70-V83-C63)*L88 -> 835846.1538 | AP80: =L86*V83*(Y70-V83/2-C63)+(Y70-V83-C63)*L88*(Y70-V83-C63)/2 -> 291144497
V81: 40 | X81: mm | AL81: 11 | AM81: =(Y70-C63)*L86 -> 631384.6154 | AP81: =(Y70-C63)*L86*(Y70-C63)/2 -> 221470295.9
V82: 30 | X82: mm | AM82: =IF(C63<=V60,AM60,IF(AND(V60<C63,C63<=(V60+V61)),AM61,IF(AND((V60+V61)<C63,C63<=(V60+V61+V62)),AM62,IF(AND((V60+V61+V62)<C63,C63<=(V60+V61+V62+R63)),AM63,IF(AND((V60+V61+V62+R63)<C63,C63<=(V60+V61+V62+R63+R65)),AM64,IF(AND((V60+V61+V62+R63+R65)<C63,C63<=(V60+V61+V62+R63+R65+S70)),AM65,IF(AND((V60+V61+V62+R63+R65+S70)<C63,C63<=(V60+V61+V62+R63+R65+S70+R77)),AM66,IF(AND((V60+V61+V62+R63+R65+S70+R77)<C63,C63<=(V60+V61+V62+R63+R65+S70+R77+R79)),AM67,IF(AND((V60+V61+V62+R63+R65+S70+R77+R79)<C63,C63<=(V60+V61+V62+R63+R65+S70+R77+R79+V81)),AM68,IF(AND((V60+V61+V62+R63+R65+S70+R77+R79+V81)<C63,C63<=(V60+V61+V62+R63+R65+S70+R77+R79+V81+V82)),AM69,IF(AND((V60+V61+V62+R63+R65+S70+R77+R79+V81+V82)<C63,C63<=(V60+V61+V62+R63+R65+S70+R77+R79+V81+V82+V83)),AM70,"hatalı"))))))))))) -> 128650 | AP82: =IF(C63<=V60,AP60,IF(AND(V60<C63,C63<=(V60+V61)),AP61,IF(AND((V60+V61)<C63,C63<=(V60+V61+V62)),AP62,IF(AND((V60+V61+V62)<C63,C63<=(V60+V61+V62+R63)),AP63,IF(AND((V60+V61+V62+R63)<C63,C63<=(V60+V61+V62+R63+R65)),AP64,IF(AND((V60+V61+V62+R63+R65)<C63,C63<=(V60+V61+V62+R63+R65+S70)),AP65,IF(AND((V60+V61+V62+R63+R65+S70)<C63,C63<=(V60+V61+V62+R63+R65+S70+R77)),AP66,IF(AND((V60+V61+V62+R63+R65+S70+R77)<C63,C63<=(V60+V61+V62+R63+R65+S70+R77+R79)),AP67,IF(AND((V60+V61+V62+R63+R65+S70+R77+R79)<C63,C63<=(V60+V61+V62+R63+R65+S70+R77+R79+V81)),AP68,IF(AND((V60+V61+V62+R63+R65+S70+R77+R79+V81)<C63,C63<=(V60+V61+V62+R63+R65+S70+R77+R79+V81+V82)),AP69,IF(AND((V60+V61+V62+R63+R65+S70+R77+R79+V81+V82)<C63,C63<=(V60+V61+V62+R63+R65+S70+R77+R79+V81+V82+V83)),AP70,"hatalı"))))))))))) -> 117214230.8
V83: 20 | X83: mm | AM83: =IF(C63<=V60,AM71,IF(AND(V60<C63,C63<=(V60+V61)),AM72,IF(AND((V60+V61)<C63,C63<=(V60+V61+V62)),AM73,IF(AND((V60+V61+V62)<C63,C63<=(V60+V61+V62+R63)),AM74,IF(AND((V60+V61+V62+R63)<C63,C63<=(V60+V61+V62+R63+R65)),AM75,IF(AND((V60+V61+V62+R63+R65)<C63,C63<=(V60+V61+V62+R63+R65+S70)),AM76,IF(AND((V60+V61+V62+R63+R65+S70)<C63,C63<=(V60+V61+V62+R63+R65+S70+R77)),AM77,IF(AND((V60+V61+V62+R63+R65+S70+R77)<C63,C63<=(V60+V61+V62+R63+R65+S70+R77+R79)),AM78,IF(AND((V60+V61+V62+R63+R65+S70+R77+R79)<C63,C63<=(V60+V61+V62+R63+R65+S70+R77+R79+V81)),AM79,IF(AND((V60+V61+V62+R63+R65+S70+R77+R79+V81)<C63,C63<=(V60+V61+V62+R63+R65+S70+R77+R79+V81+V82)),AM80,IF(AND((V60+V61+V62+R63+R65+S70+R77+R79+V81+V82)<C63,C63<=(V60+V61+V62+R63+R65+S70+R77+R79+V81+V82+V83)),AM81,"hatalı"))))))))))) -> 128650 | AP83: =IF(C63<=V60,AP71,IF(AND(V60<C63,C63<=(V60+V61)),AP72,IF(AND((V60+V61)<C63,C63<=(V60+V61+V62)),AP73,IF(AND((V60+V61+V62)<C63,C63<=(V60+V61+V62+R63)),AP74,IF(AND((V60+V61+V62+R63)<C63,C63<=(V60+V61+V62+R63+R65)),AP75,IF(AND((V60+V61+V62+R63+R65)<C63,C63<=(V60+V61+V62+R63+R65+S70)),AP76,IF(AND((V60+V61+V62+R63+R65+S70)<C63,C63<=(V60+V61+V62+R63+R65+S70+R77)),AP77,IF(AND((V60+V61+V62+R63+R65+S70+R77)<C63,C63<=(V60+V61+V62+R63+R65+S70+R77+R79)),AP78,IF(AND((V60+V61+V62+R63+R65+S70+R77+R79)<C63,C63<=(V60+V61+V62+R63+R65+S70+R77+R79+V81)),AP79,IF(AND((V60+V61+V62+R63+R65+S70+R77+R79+V81)<C63,C63<=(V60+V61+V62+R63+R65+S70+R77+R79+V81+V82)),AP80,IF(AND((V60+V61+V62+R63+R65+S70+R77+R79+V81+V82)<C63,C63<=(V60+V61+V62+R63+R65+S70+R77+R79+V81+V82+V83)),AP81,"hatalı"))))))))))) -> 79711826.92
M84: y | AM84: =+AM82-AM83 -> 0 | AP84: =+AP82+AP83 -> 196926057.7
L86: 900 | O86: mm
L88: 1200 | O88: mm
L90: 1600 | O90: mm
L92: 24.1883815 | N92: mm | P92: =+N94-L92 -> 50.8116185 | R92: mm | AM92: 1 | AN92: =IF(D101<=H98,D101*M100,IF(AND(H98<D101,D101<=(H98+G104)),H98*M100+AE96*AE97/2+(D101-H98)*AE98,IF(AND((H98+G104)<D101,D101<=(H98+G104+H107)),H98*M100+AE96*AE97/2+G104*AE98-AE96*AE97/2+(D101-H98-G104)*M100,IF(AND((H98+G104+H107)<D101,D101<=(H98+G104+H107+G112)),H98*M100+AE96*AE97/2+G104*AE98-AE96*AE97/2+H107*M100+(D101-H98-G104-H107)*AE98-AE96*AE97/2,IF(AND((H98+G104+H107+G112)<D101,D101<=Y106),H98*M100+AE96*AE97/2+G104*AE98-AE96*AE97/2+H107*M100+G112*AE98-AE96*AE97/2+(D101-H98-G104-H107-G112)*M100+AE96*AE97/2,"hatalı"))))) -> 1057.987616 | AQ92: =IF(D101<=H98,D101*M100*D101/2,IF(AND(H98<D101,D101<=(H98+G104)),H98*M100*(D101-H98/2)+AE96*AE97/2*(D101-H98+AE97/3)+(D101-H98)*AE98*(D101-H98)/2,IF(AND((H98+G104)<D101,D101<=(H98+G104+H107)),H98*M100*(D101-H98/2)+AE96*AE97/2*(D101-H98+AE97/3)+G104*AE98*(D101-H98-G104/2)-AE96*AE97/2*(D101-H98-G104+AE97/3)+(D101-H98-G104)*M100*(D101-H98-G104)/2,IF(AND((H98+G104+H107)<D101,D101<=(H98+G104+H107+G112)),H98*M100*(D101-H98/2)+AE96*AE97/2*(D101-H98+AE97/3)+G104*AE98*(D101-H98-G104/2)-AE96*AE97/2*(D101-H98-G104+AE97/3)+H107*M100*(D101-H98-G104-H107/2)+(D101-H98-G104-H107)*AE98*(D101-H98-G104-H107)/2-AE96*AE97/2*(D101-H98-G104-H107-AE97/3),IF(AND((H98+G104+H107+G112)<D101,D101<=Y106),H98*M100*(D101-H98/2)+AE96*AE97/2*(D101-H98+AE97/3)+G104*AE98*(D101-H98-G104/2)-AE96*AE97/2*(D101-H98-G104+AE97/3)+H107*M100*(D101-H98-G104-H107/2)+G112*AE98*(D101-H98-G104-H107-G112/2)-AE96*AE97/2*(D101-H98-G104-H107+AE97/3)+(D101-H98-G104-H107-G112)*M100*(D101-H98-G104-H107-G112)/2+AE96*AE97/2*(D101-H98-G104-H107-G112+AE97/3),"hatalı"))))) -> 76421.86753
AM93: 2 | AN93: =IF(D101<=H98,H116*M100+AE96*AE97/2+G112*AE98-AE96*AE97/2+H107*M100+G104*AE98-AE96*AE97/2+(D112-G104-H107-G112-H116)*M100+AE96*AE97/2,IF(AND(H98<D101,D101<=(H98+G104)),H116*M100+AE96*AE97/2+G112*AE98-AE96*AE97/2+H107*M100+(D112-H107-G112-H116)*AE98-AE96*AE97/2,IF(AND((H98+G104)<D101,D101<=(H98+G104+H107)),H116*M100+AE96*AE97/2+G112*AE98-AE96*AE97/2+(D112-G112-H116)*M100,IF(AND((H98+G104+H107)<D101,D101<=(H98+G104+H107+G112)),H116*M100+AE96*AE97/2+(D112-H116)*AE98,IF(AND((H98+G104+H107+G112)<D101,D101<=Y106),D112*M100,"hatalı"))))) -> 1127.987616 | AQ93: =IF(D101<=H98,H116*M100*(D112-H116/2)+AE96*AE97/2+G112*AE98*(D112-H116-G112/2)-AE96*AE97/2+H107*M100*(D112-H116-G112-H107/2)+G104*AE98*(D112-H116-G112-H107-G104/2)-AE96*AE97/2+(D112-G104-H107-G112-H116)*M100*(D112-G104-H107-G112-H116)/2+AE96*AE97/2,IF(AND(H98<D101,D101<=(H98+G104)),H116*M100*(D112-H116/2)+AE96*AE97/2*(D112-H116+AE97/3)+G112*AE98*(D112-H116-G112/2)-AE96*AE97/2*(D112-H116-G112+AE97/3)+H107*M100*(D112-H116-G112-H107/2)+(D112-H107-G112-H116)*AE98*(D112-H107-G112-H116)/2-AE96*AE97/2*(D112-H116-G112-H107-AE97/3),IF(AND((H98+G104)<D101,D101<=(H98+G104+H107)),H116*M100*(D112-H116/2)+AE96*AE97/2*(D112-H116+AE97/3)+G112*AE98*(D112-H116-G112/2)-AE96*AE97/2*(D112-H116-G112+AE97/3)+(D112-G112-H116)*M100*(D112-G112-H116)/2,IF(AND((H98+G104+H107)<D101,D101<=(H98+G104+H107+G112)),H116*M100*(D112-H116/2)+AE96*AE97/2*(D112-H116+AE97/3)+(D112-H116)*AE98*(D112-H116)/2,IF(AND((H98+G104+H107+G112)<D101,D101<=Y106),D112*M100*D112/2,"hatalı"))))) -> 87351.74369
N94: 75 | P94: mm | AM94: 1 | AN94: =IF(D101<=S97,D101*(N94-M100-R100),IF(AND(S97<D101,D101<=(Y106-S119)),(N94-R100-M100)*S97,IF(AND((Y106-S119)<D101,D101<=Y106),(N94-R100-M100)*S97+(D101-(Y106-S119))*(N121-R113-M100),"hatalı"))) -> 427 | AQ94: =IF(D101<=S97,D101*(N94-M100-R100)*D101/2,IF(AND(S97<D101,D101<=(Y106-S119)),(N94-R100-M100)*S97*(D101-S97/2),IF(AND((Y106-S119)<D101,D101<=Y106),(N94-R100-M100)*S97*(D101-S97/2)+(D101-(Y106-S119))*(N121-R113-M100)*(D101-(Y106-S119))/2,"hatalı"))) -> 60420.5
O95: y | AM95: 2 | AN95: =IF(D101<=S97,(N121-R113-M100)*S119+(S97-D101)*(N94-R100-M100),IF(AND(S97<D101,D101<=(Y106-S119)),(N121-R113-M100)*S119,IF(AND((Y106-S119)<D101,D101<=Y106),D112*(N121-R113-M100),"hatalı"))) -> 427 | AQ95: =IF(D101<=S97,(N121-R113-M100)*S119*(D112-S119/2)+(S97-D101)*(N94-R100-M100)*(S97-D101)/2,IF(AND(S97<D101,D101<=(Y106-S119)),(N121-R113-M100)*S119*(D112-S119/2),IF(AND((Y106-S119)<D101,D101<=Y106),D112*(N121-R113-M100)*D112/2,"hatalı"))) -> 64690.5
H96: mm | AE96: =(M100/COS(ATAN(L106/G104))-M100) -> 1.074690397 | AH96: =M100*G104/L106 -> 12.17391304 | AM96: 1 | AN96: =IF(D101<=(S98+S97),D101*R100,IF(AND((S97+S98)<D101,D101<=(Y106-S119-S117)),R100*(S98+S97),IF(AND((Y106-S119-S117)<D101,D101<=Y106),R100*(S98+S97)+(D101-(Y106-S119-S117))*R113,"hatalı"))) -> 280 | AQ96: =IF(D101<=(S98+S97),D101*R100*D101/2,IF(AND((S97+S98)<D101,D101<=(Y106-S119-S117)),R100*(S98+S97)*(D101-(S97+S98)/2),IF(AND((Y106-S119-S117)<D101,D101<=Y106),R100*(S98+S97)*(D101-(S97+S98)/2)+(D101-(Y106-S119-S117))*R113*(D101-(Y106-S119-S117))/2,"hatalı"))) -> 35000
S97: 7 | U97: mm | AE97: =((M100/COS(ATAN(L106/G104))-M100)/(L106/G104)) -> 1.869026777 | AH97: =(M100/SIN(ATAN(L106/G104))) -> 14.04293982 | AM97: 2 | AN97: =IF(D101<=(S98+S97),R113*(S119+S117)+(D112-(Y106-S97-S98))*R100,IF(AND((S97+S98)<D101,D101<=(Y106-S119-S117)),R113*(S119+S117),IF(AND((Y106-S119-S117)<D101,D101<=Y106),D112*R113,"hatalı"))) -> 210 | AQ97: =IF(D101<=(S98+S97),R113*(S119+S117)*(D112-(S119+S117)/2)+(D112-(Y106-S97-S98))*R100*(D112-(Y106-S97-S98))/2,IF(AND((S97+S98)<D101,D101<=(Y106-S119-S117)),R113*(S119+S117)*(D112-(S119+S117)/2),IF(AND((Y106-S119-S117)<D101,D101<=Y106),D112*R113*D112/2,"hatalı"))) -> 29400
H98: 60 | S98: 33 | U98: mm | W98: =H98-S97-M100*TAN((ATAN(L106/G104))/2) -> 51.13097322 | AE98: =M100/COS(ATAN(L106/G104)) -> 8.074690397 | AH98: =(L92-M100)*G104/L106 -> 29.89283738 | AN98: =AN92+AN94+AN96 -> 1764.987616 | AQ98: =AQ92+AQ94+AQ96 -> 171842.3675
D99: mm | F99: mm | AH99: =(L106+M100-L92)*G104/L106 -> 10.10716262 | AN99: =+AN93+AN95+AN97 -> 1764.987616 | AQ99: =+AQ93+AQ95+AQ97 -> 181442.2437
M100: 7 | R100: 7 | AB100: enkesit özellikleri | AN100: =AN98-AN99 -> 0 | AQ100: =+AQ98+AQ99 -> 353284.6112
D101: 145 | F101: =(R100*S98*(S98/2+S97)+N94*S97*(S97/2)+W98*M100*(W98/2+S97)+W116*M100*(Y106-S119-W116/2)+N121*S119*(Y106-S119/2)+R113*S117*(Y106-S119-S117/2)+(V103+W107+V113)*(L106+M100)*((V113+W107+V103)/2+W98+S97)-G104*L106/2*(H98+2*G104/3)-G104*L106/2*(W98+S97+G104/3)-G112*L106/2*(H107+G104+H98+G112/3)-G112*L106/2*(W107+V103+W98+S97+2*G112/3)-H107*L106*(H107/2+G104+H98))/(R100*S98+N94*S97+W98*M100+W116*M100+N121*S119+R113*S117+(V103+W107+V113)*(L106+M100)-G104*L106-G112*L106-H107*L106) -> 147.7195307 | AB101: A = | AD101: =((R100*S98+N94*S97+W98*M100+W116*M100+N121*S119+R113*S117+(V103+W107+V113)*(L106+M100)-G104*L106-G112*L106-H107*L106))/100 -> 35.29975232 | AH101: cm²
AB102: Ix = | AD102: =(R100*S98^3/12+R100*S98*(F101-S97-S98/2)^2+N94*S97^3/12+N94*S97*(F101-S97/2)^2+M100*W98^3/12+W98*M100*(F101-S97-W98/2)^2+M100*W116^3/12+W116*M100*(F112-S119-W116/2)^2+N121*S119^3/12+N121*S119*(F112-S119/2)^2+R113*S117^3/12+R113*S117*(F112-S119-S117/2)^2+(L106+M100)*(V103+W107+V113)^3/12+(V103+W107+V113)*(L106+M100)*(F101-S97-W98-(V103+W107+V113)/2)^2-L106*G104^3/36-G104*L106/2*(F101-H98-G104*2/3)^2-L106*G104^3/36-G104*L106/2*(F101-S97-W98-G104/3)^2-L106*G112^3/36-G112*L106/2*(F112-H116-2*G112/3)^2-L106*G112^3/36-G112*L106/2*(F112-S119-W116-V113/3)^2-L106*H107^3/12-H107*L106*(F101-H98-G104-H107/2)^2)/10000 -> 4312.031463 | AI102: cm4
V103: =+G104 -> 40 | X103: mm | AB103: Iy = | AD103: =(R100^3*S98/12+R100*S98*(Q109-R100/2)^2+N94^3*S97/12+N94*S97*(Q109-N94/2)^2+M100^3*W98/12+W98*M100*(L109-M100/2)^2+M100^3*W116/12+W116*M100*(L109-M100/2)^2+N121^3*S119/12+N121*S119*(Q109-N121/2)^2+R113^3*S117/12+R113*S117*(Q109-R113/2)^2+(L106+M100)^3*(V103+W107+V113)/12+(V103+W107+V113)*(L106+M100)*(L109-(L106+M100)/2)^2-L106^3*G104/36-G104*L106/2*(L109-L106/3)^2-L106^3*G104/36-G104*L106/2*(L109-M100-2*L106/3)^2-L106^3*G112/36-G112*L106/2*(L109-L106/3)^2-L106^3*G112/36-G112*L106/2*(L109-M100-2*L106/3)^2-L106^3*H107/12-H107*L106*(L109-L106/2)^2)/10000 -> 191.629872 | AI103: cm4 | AM103: 1 | AN103: =2*L92*H98+2*(L92*G104/L106)*L92/2 -> 3920.132387 | AQ103: =2*L92*H98*L92/2+2*(L92*G104/L106)*L92/2*2*L92/3 -> 51512.88247
G104: 40 | I104: mm | Y104: mm | AB104: Wext = | AE104: =+AD102/(F112/10) -> 283.1637888 | AI104: cm3 | AM104: 2 | AN104: =2*((M100-L92)*G104/L106)*(M100-L92)/2+2*((L92*G104/L106)+H98)*(M100-L92)+2*(M100/SIN(ATAN(L106/G104)))*(L106-M100)+W107*M100+2*(G104*M100/L106)*M100/2+(N94-M100)*S97+R100*S98+(N121-M100)*S119+R113*S117 -> -390.1571553 | AQ104: =2*((M100-L92)*G104/L106)*(M100-L92)/2*(M100-L92)*2/3+2*((L92*G104/L106)+H98)*(M100-L92)*(M100-L92)/2+2*(M100/SIN(ATAN(L106/G104)))*(L106-M100)*((L106-M100)/2+(M100-L92))+W107*M100*(L106+M100/2-L92)+2*(G104*M100/L106)*M100/2*(M100/3+L106-L92)+(N94-M100)*S97*(P92-(N94-M100)/2)+R100*S98*(P92-R100/2)+(N121-M100)*S119*(P92-(N121-M100)/2)+R113*S117*(P92-R113/2) -> 56464.92943
Q105: plastik | W105: mm | AB105: Wexc = | AE105: =+AD102/(F101/10) -> 291.9066586 | AI105: cm3 | AM105: 1 | AN105: =2*H116*M100+(L92-M100)*S119+(L92-M100)*S97+2*AH96*M100/2+2*AH97*(L92-M100) -> 1648.605546 | AQ105: =2*H116*M100*(L92-M100/2)+(L92-M100)*S119*(L92-M100)/2+(L92-M100)*S97*(L92-M100)/2+2*AH96*M100/2*(L92-2*M100/3)+2*AH97*(L92-M100)*(L92-M100)/2 -> 25258.76585
L106: 23 | Q106: tarafsız eks. | Y106: 300 | AB106: Weyt = | AE106: =+AD103/(Q109/10) -> 40.69902335 | AI106: cm3 | AM106: 2 | AN106: =2*AH97*(L106+M100-L92)+2*AH96*M100/2+(W107-2*AH97)*M100+(P92*S119)+R113*S117+P92*S97+S98*R100 -> 1881.369686 | AQ106: =2*AH97*(L106+M100-L92)*(L106+M100-L92)/2+2*AH96*M100/2*(L106-L92+M100/3)+(W107-2*AH97)*M100*(L106-L92+M100/2)+P92*S119*P92/2+R113*S117*(P92-R113/2)+P92*S97*P92/2+S98*R100*(P92-R100/2) -> 38414.92007
H107: 100 | W107: =+Y106-S97-W98-V103-V113-W116-S119 -> 103.7380536 | AB107: Weyc = | AE107: =+AD103/(L109/10) -> 68.64674067 | AI107: cm3 | AM107: 1 | AN107: =L92*Y106-W116*(L92-M100)-W98*(L92-M100)-2*AH98*(L92-M100)/2-2*G104*L106/2-H107*L106 -> 1764.987608 | AQ107: =L92*Y106*L92/2-W116*(L92-M100)*(L92-M100)/2-W98*(L92-M100)*(L92-M100)/2-2*AH98*(L92-M100)/2*(L92-M100)/3-2*G104*L106/2*(L92-L106/3)-H107*L106*(L92-L106/2) -> 25328.40546
J108: x | Q108: ağr.mrk. | U108: x | AB108: ix = | AD108: =SQRT(AD102/AD101) -> 11.05236278 | AG108: cm | AM108: 2 | AN108: =2*(L106+M100-L92)*AH99/2+W107*(L106+M100-L92)+P92*S119+S117*R113+P92*S97+S98*R100 -> 1764.987624 | AQ108: =2*(L106+M100-L92)*AH99/2*(L106+M100-L92)/3+W107*(L106+M100-L92)*(L106+M100-L92)/2+P92*S119*P92/2+S117*R113*(P92-R113/2)+P92*S97*P92/2+S98*R100*(P92-R100/2) -> 38484.55967
L109: =(R100*S98*(N94-R100/2)+N94*S97*(N94/2)+W98*M100*(M100/2)+W116*M100*(M100/2)+N121*S119*(N121/2)+R113*S117*(N121-R113/2)+(V103+W107+V113)*(L106+M100)*(L106+M100)/2-G104*L106/2*(L106/3)-G104*L106/2*(2*L106/3+M100)-G112*L106/2*(L106/3)-G112*L106/2*(L106*2/3+M100)-H107*L106*(L106/2))/(R100*S98+N94*S97+W98*M100+W116*M100+N121*S119+R113*S117+(V103+W107+V113)*(L106+M100)-G104*L106-G112*L106-H107*L106) -> 27.91536351 | Q109: =+N94-L109 -> 47.08463649 | AB109: iy = | AD109: =SQRT(AD103/AD101) -> 2.32994557 | AG109: cm | AM109: 1 | AN109: =L92*Y106-2*G104*L106/2-H107*L106-(L92-M100)*W116-(L92-M100)*W98-2*G104*L106/2-(V113+W107+V103)*(L92-L106-M100) -> 2426.612573 | AQ109: =L92*Y106*L92/2-2*G104*L106/2*(L92-L106/3)-H107*L106*(L92-L106/2)-(L92-M100)*W116*(L92-M100)/2-(L92-M100)*W98*(L92-M100)/2-2*G104*L106/2*(L92-M100-2*L106/3)-(V113+W107+V103)*(L92-L106-M100)*(L92-L106-M100)/2 -> 23462.74427
D110: mm | F110: mm | AB110: Wpx = | AE110: =+AQ100/1000 -> 353.2846112 | AI110: cm3 | AM110: 2 | AN110: =P92*S119+R113*S117+P92*S97+R100*S98 -> 1103.362659 | AQ110: =P92*S119*P92/2+R113*S117*(P92-R113/2)+P92*S97*P92/2+R100*S98*(P92-R100/2) -> 36618.89848
R111: mm | AB111: Wpy = | AE111: =+AQ115/1000 -> 63.81296513 | AI111: cm3 | AM111: 1 | AN111: =L92*Y106-2*G104*L106/2-H107*L106-2*G104*L106/2-(L92-L106-M100)*(V113+W107+V103)-W116*(N121-R113-M100)-W98*(N94-M100-R100)-(W98-S98)*(L92-N94+R100)-(W116-S117)*(L92-N121+R113) -> -26.83806361 | AQ111: =L92*Y106*L92/2-2*G104*L106/2*(L92-L106/3)-H107*L106*(L92-L106/2)-2*G104*L106/2*(L92-M100-L106*2/3)-(L92-L106-M100)*(V113+W107+V103)*(L92-L106-M100)/2-W116*(N121-R113-M100)*(L92-M100-(N121-R113-M100)/2)-W98*(N94-M100-R100)*(L92-M100-(N94-M100-R100)/2)-(W98-S98)*(L92-N94+R100)*(L92-N94+R100)/2-(W116-S117)*(L92-N121+R113)*(L92-N121+R113)/2 -> 77207.56591
D112: =+Y106-D101 -> 155 | F112: =+Y106-F101 -> 152.2804693 | G112: =+G104 -> 40 | I112: mm | AB112: sa = Fy = | AE112: 275 | AG112: N/mm² | AM112: 2 | AN112: =P92*(S117+S119)+P92*(S98+S97) -> 3556.813295 | AQ112: =P92*(S117+S119)*P92/2+P92*(S98+S97)*P92/2 -> 90363.72013
R113: =+R100 -> 7 | V113: =+G112 -> 40 | X113: mm | AB113: Mnx = | AD113: =+AE112*MIN(AE104,AE105)/1000 -> 77.87004192 | AG113: KNm | AN113: =IF(L92<=M100,AN103,IF(AND(M100<L92,L92<=L106),AN105,IF(AND(L106<L92,L92<=(L106+M100)),AN107,IF(AND((L106+M100)<L92,L92<=(N94-R100)),AN109,IF(AND((N94-R100)<L92,L92<=N94),AN111,"hatalı"))))) -> 1764.987608 | AQ113: =IF(L92<=M100,AQ103,IF(AND(M100<L92,L92<=L106),AQ105,IF(AND(L106<L92,L92<=(L106+M100)),AQ107,IF(AND((L106+M100)<L92,L92<=(N94-R100)),AQ109,IF(AND((N94-R100)<L92,L92<=N94),AQ111,"hatalı"))))) -> 25328.40546
H114: mm | AB114: Mpx = | AD114: =+AE112*AE110/1000 -> 97.15326809 | AG114: KNm | AN114: =IF(L92<=M100,AN104,IF(AND(M100<L92,L92<=L106),AN106,IF(AND(L106<L92,L92<=(L106+M100)),AN108,IF(AND((L106+M100)<L92,L92<=(N94-R100)),AN110,IF(AND((N94-R100)<L92,L92<=N94),AN112,"hatalı"))))) -> 1764.987624 | AQ114: =IF(L92<=M100,AQ104,IF(AND(M100<L92,L92<=L106),AQ106,IF(AND(L106<L92,L92<=(L106+M100)),AQ108,IF(AND((L106+M100)<L92,L92<=(N94-R100)),AQ110,IF(AND((N94-R100)<L92,L92<=N94),AQ112,"hatalı"))))) -> 38484.55967
AB115: bf = | AD115: =+AD114/AD113 -> 1.247633438 | AN115: =+AN113-AN114 -> -1.637332571e-05 | AQ115: =+AQ113+AQ114 -> 63812.96513
H116: =+Y106-H98-G104-H107-G112 -> 60 | W116: =H116-S119-M100*TAN((ATAN(L106/G112))/2) -> 51.13097322
S117: 23 | U117: mm
S119: 7 | U119: mm
O120: y
N121: =+N94 -> 75 | P121: mm
J125: 5.611666667 | L125: mm | N125: =+L127-J125 -> 64.38833333 | P125: mm
L127: 70 | N127: mm
L129: y
Q130: 7 | S130: mm
D131: mm | Q131: 25 | S131: mm
F132: mm
D133: 152.5 | P133: 7
F134: =(U139*K135*U139/2+(L127-K135)*Q130*Q130/2+(L154-K135)*Q152*(U139-Q152/2)+P133*Q131*(Q131/2+Q130)+P146*Q150*(U139-Q152-Q150/2))/(U139*K135+(L127-K135)*Q130+(L154-K135)*Q152+P133*Q131+P146*Q150) -> 151.2006237 | X134: A = | Z134: =((U139*K135+(L127-K135)*Q130+(L154-K135)*Q152+P133*Q131+P146*Q150))/100 -> 33.67 | AD134: cm²
K135: 7 | M135: mm | X135: Ix = | Z135: =(K135*U139^3/12+U139*K135*(F134-U139/2)^2+(L127-K135)*Q130^3/12+(L127-K135)*Q130*(F134-Q130/2)^2+(L154-K135)*Q152^3/12+(L154-K135)*Q152*(F145-Q152/2)^2+P133*Q131^3/12+P133*Q131*(F134-Q130-Q131/2)^2+P146*Q150^3/12+P146*Q150*(F145-Q152-Q150/2)^2)/10000 -> 4112.425081 | AE135: cm4
X136: Iy = | Z136: =(U139*K135^3/12+U139*K135*(K142-K135/2)^2+Q130*(L127-K135)^3/12+Q130*(L127-K135)*(N142-(L127-K135)/2)^2+Q152*(L154-K135)^3/12+Q152*(L154-K135)*(N142-(L154-K135)/2)^2+Q131*P133^3/12+Q131*P133*(N142-P133/2)^2+Q150*P146^3/12+P146*Q150*(N142-P146/2)^2)/10000 -> 200.786929 | AE136: cm4 | AG136: 1 | AH136: =L127*D133 -> 10675 | AK136: =L127*D133*D133/2 -> 813968.75 | AN136: =J125*U139 -> 1683.5 | AQ136: =J125*U139*J125/2 -> 4723.620417
L137: plastik | U137: mm | X137: Wext = | AA137: =+Z135/(F145/10) -> 276.3738117 | AE137: cm3 | AG137: 2 | AH137: =D133*K135+D133*P133+(L127-P133-K135)*Q130 -> 2527 | AK137: =D133*K135*D133/2+D133*P133*D133/2+(L127-P133-K135)*Q130*(D133-Q130/2) -> 221201.75 | AN137: =U139*K135+(J125-K135)*Q130+(J125-K135)*Q152 -> 2080.563333 | AQ137: =U139*K135*(J125-K135/2)+(J125-K135)*Q130*(J125-K135)/2+(J125-K135)*Q152*(J125-K135)/2 -> 4447.992286
L138: tarafsız eks. | X138: Wexc = | AA138: =+Z135/(F134/10) -> 271.9846639 | AE138: cm3 | AG138: 3 | AH138: =L127*Q130+P133*Q131+(D133-Q130)*K135 -> 1683.5 | AK138: =L127*Q130*(D133-Q130/2)+P133*Q131*(D133-Q130-Q131/2)+(D133-Q130)*K135*(D133-Q130-(D133-Q130)/2) -> 170380.875 | AN138: =U139*K135+(L127-P133-K135)*Q130+(L127-P146-K135)*Q152+(J125-(L127-P133))*(Q131+Q130)+(J125-(L127-P146))*(Q150+Q152) -> -1075.795 | AQ138: =U139*K135*(J125-K135/2)+(L127-P133-K135)*Q130*(J125-K135-(L127-P133-K135)/2)+(L127-P146-K135)*Q152*(J125-K135-(L127-P146-K135)/2)+(J125-(L127-P133))*(Q131+Q130)*((J125-(L127-P133))/2)+(J125-(L127-P146))*(Q150+Q152)*(J125-(L127-P146))/2 -> 95017.06436
U139: 300 | X139: Weyt = | AA139: =+Z136/(N142/10) -> 40.05495836 | AE139: cm3 | AG139: 4 | AH139: =L127*Q130+Q131*P133+(D133-Q130)*K135+(D133-(U139-Q152-Q150))*P146 -> 910 | AK139: =L127*Q130*(D133-Q130/2)+Q131*P133*(D133-Q130-Q131/2)+(D133-Q130)*K135*(D133-Q130)/2+(D133-(U139-Q152-Q150))*P146*(D133-(U139-Q152-Q150))/2 -> 213116.75
N140: ağr.mrk. | X140: Weyc = | AA140: =+Z136/(K142/10) -> 101.0394025 | AE140: cm3 | AG140: 5 | AH140: =L127*Q130+P133*Q131+(D133-Q130)*K135+(L154-K135)*(D133-(U139-Q152))+P146*Q150 -> -6958 | AK140: =L127*Q130*(D133-Q130/2)+P133*Q131*(D133-Q130-Q131/2)+(D133-Q130)*K135*(D133-Q130)/2+(L154-K135)*(D133-(U139-Q152))*(D133-(U139-Q152))/2+P146*Q150*(D133-(U139-Q152-Q150/2)) -> 765843.75
H141: x | R141: x | X141: ix = | Z141: =SQRT(Z135/Z134) -> 11.05165811 | AC141: cm | AG141: 1 | AH141: =(Q130-D133)*L127+Q131*P133+(U139-Q130-Q152)*K135+L154*Q152+P146*Q150 -> -7308 | AK141: =(Q130-D133)*L127*(Q130-D133)/2+Q131*P133*(Q131+Q130-D133)/2+(U139-Q130-Q152)*K135*(U139-Q152-D133)/2+L154*Q152*(U139-D133-Q152/2)+P146*Q150*(U139-Q152-Q150/2-D133) -> 967970.5 | AN141: =(K135-J125)*U139+(L127-K135)*Q130+(L127-K135)*Q152+P133*Q131+P146*Q150 -> 1683.5 | AQ141: =(K135-J125)*U139*(K135-J125)/2+(L127-K135)*Q130*(L127-J125-(L127-K135)/2)+(L127-K135)*Q152*(L127-J125-(L127-K135)/2)+P133*Q131*(L127-P133/2-J125)+P146*Q150*(L127-P146/2-J125) -> 52738.63875
D142: mm | K142: =(U139*K135*K135/2+(L127-K135)*Q130*(K135+(L127-K135)/2)+(L154-K135)*Q152*(K135+(L154-K135)/2)+P133*Q131*(L127-P133/2)+P146*Q150*(L154-P146/2))/(U139*K135+(L127-K135)*Q130+(L154-K135)*Q152+P133*Q131+P146*Q150) -> 19.87214137 | N142: =+L127-K142 -> 50.12785863 | P142: mm | X142: iy = | Z142: =SQRT(Z136/Z134) -> 2.442002816 | AC142: cm | AG142: 2 | AH142: =(U139-D133)*K135+(Q131+Q130-D133)*P133+(L154-P146-K135)*Q152+P146*(Q150+Q152) -> 840 | AK142: =(U139-D133)*K135*(U139-D133)/2+(Q131+Q130-D133)*P133*(Q131+Q130-D133)/2+(L154-P146-K135)*Q152*(U139-Q152/2-D133)+P146*(Q150+Q152)*(U139-(Q152+Q150)/2-D133) -> 216826.75 | AN142: =(L127-J125)*Q130+(L127-J125)*Q152+P133*Q131+P146*Q150 -> 1286.436667 | AQ142: =(L127-J125)*Q130*(L127-J125)/2+(L127-J125)*Q152*(L127-J125)/2+P133*Q131*(L127-J125-P133/2)+P146*Q150*(L127-J125-P146/2) -> 52463.01062
F143: mm | X143: Wpx = | AA143: =+AK148/1000 -> 336.38675 | AE143: cm3 | AG143: 3 | AH143: =(U139-D133)*K135+(L154-K135)*Q152+P146*Q150 -> 1683.5 | AK143: =(U139-D133)*K135*(U139-D133)/2+(L154-K135)*Q152*(U139-D133-Q152/2)+P146*Q150*(U139-Q152-Q150/2-D133) -> 166005.875 | AN143: =(L127-J125)*(Q131+Q130)+(L127-J125)*(Q150+Q152) -> 4442.795 | AQ143: =(L127-J125)*(Q131+Q130)*(L127-J125)/2+(L127-J125)*(Q150+Q152)*(L127-J125)/2 -> 143032.0827
D144: =+U139-D133 -> 147.5 | P144: mm | X144: Wpy = | AA144: =+AQ148/1000 -> 57.46225917 | AE144: cm3 | AG144: 4 | AH144: =(U139-Q152-D133)*K135+L154*Q152+(U139-Q152-D133)*P146 -> 2457 | AK144: =(U139-Q152-D133)*K135*(U139-Q152-D133)/2+L154*Q152*(U139-D133-Q152/2)+(U139-Q152-D133)*P146*(U139-Q152-D133)/2 -> 208741.75
F145: =+U139-F134 -> 148.7993763 | X145: sa = Fy = | AA145: 275 | AC145: N/mm² | AG145: 5 | AH145: =L154*(U139-D133) -> 10325 | AK145: =L154*(U139-D133)*(U139-D133)/2 -> 761468.75
P146: =+P133 -> 7 | X146: Mnx = | Z146: =+AA145*MIN(AA137,AA138)/1000 -> 74.79578256 | AC146: KNm | AH146: =IF(D133<=Q130,AH136,IF(AND(Q130<D133,D133<=(Q130+Q131)),AH137,IF(AND((Q130+Q131)<D133,D133<=(U139-Q152-Q150)),AH138,IF(AND((U139-Q152-Q150)<D133,D133<=(U139-Q152)),AH139,IF(AND((U139-Q152)<D133,D133<=U139),AH140,"hatalı"))))) -> 1683.5 | AK146: =IF(D133<=Q130,AK136,IF(AND(Q130<D133,D133<=(Q130+Q131)),AK137,IF(AND((Q130+Q131)<D133,D133<=(U139-Q152-Q150)),AK138,IF(AND((U139-Q152-Q150)<D133,D133<=(U139-Q152)),AK139,IF(AND((U139-Q152)<D133,D133<=U139),AK140,"hatalı"))))) -> 170380.875 | AN146: =IF(J125<=K135,AN136,IF(AND(K135<J125,J125<=(L127-P133)),AN137,IF(AND((L127-P133)<J125,J125<=L127),AN138,"hatalı"))) -> 1683.5 | AQ146: =IF(J125<=K135,AQ136,IF(AND(K135<J125,J125<=(L127-P133)),AQ137,IF(AND((L127-P133)<J125,J125<=L127),AQ138,"hatalı"))) -> 4723.620417
X147: Mpx = | Z147: =+AA145*AA143/1000 -> 92.50635625 | AC147: KNm | AH147: =IF(D133<=Q130,AH141,IF(AND(Q130<D133,D133<=(Q130+Q131)),AH142,IF(AND((Q130+Q131)<D133,D133<=(U139-Q152-Q150)),AH143,IF(AND((U139-Q152-Q150)<D133,D133<=(U139-Q152)),AH144,IF(AND((U139-Q152)<D133,D133<=U139),AH145,"hatalı"))))) -> 1683.5 | AK147: =IF(D133<=Q130,AK141,IF(AND(Q130<D133,D133<=(Q130+Q131)),AK142,IF(AND((Q130+Q131)<D133,D133<=(U139-Q152-Q150)),AK143,IF(AND((U139-Q152-Q150)<D133,D133<=(U139-Q152)),AK144,IF(AND((U139-Q152)<D133,D133<=U139),AK145,"hatalı"))))) -> 166005.875 | AN147: =IF(J125<=K135,AN141,IF(AND(K135<J125,J125<=(L127-P133)),AN142,IF(AND((L127-P133)<J125,J125<=L127),AN143,"hatalı"))) -> 1683.5 | AQ147: =IF(J125<=K135,AQ141,IF(AND(K135<J125,J125<=(L127-P133)),AQ142,IF(AND((L127-P133)<J125,J125<=L127),AQ143,"hatalı"))) -> 52738.63875
X148: bf = | Z148: =+Z147/Z146 -> 1.236785726 | AH148: =AH146-AH147 -> 0 | AK148: =+AK146+AK147 -> 336386.75 | AN148: =+AN146-AN147 -> 0 | AQ148: =+AQ146+AQ147 -> 57462.25917
Q150: 30 | S150: mm
Q152: 7 | S152: mm
L153: y
L154: =+L127 -> 70 | N154: mm
L158: 61.675 | N158: mm | T158: =+N187+T160-S168-L158 -> 71.325 | V158: mm
T160: 75 | V160: mm
P161: y | AO161: 1 | AP161: =D166*T160 -> 10687.5 | AS161: =D166*T160*D166/2 -> 761484.375
AO162: 2 | AP162: =T160*Y163+(D166-Y163)*X165+(D166-Y163)*S168 -> 2422 | AS162: =T160*Y163*(D166-Y163/2)+(D166-Y163)*X165*(D166-Y163)/2+(D166-Y163)*S168*(D166-Y163)/2 -> 201496.75
Y163: 7 | AA163: mm | AO163: 3 | AP163: =T160*Y163+X165*Y164+(D166-Y163)*S168 -> 1578.5 | AS163: =T160*Y163*(D166-Y163/2)+X165*Y164*(D166-Y163-Y164/2)+(D166-Y163)*S168*(D166-Y163)/2 -> 150675.875
D164: mm | Y164: 15 | AA164: mm | AO164: 4 | AP164: =T160*Y163+X165*Y164+(D166-Y163)*S168+(D166-(AC172-G185-G184))*K179 -> 595 | AS164: =T160*Y163*(D166-Y163/2)+X165*Y164*(D166-Y163-Y164/2)+(D166-Y163)*S168*(D166-Y163)/2+(D166-(AC172-G185-G184))*K179*(D166-(AC172-G185-G184))/2 -> 219766.75
F165: mm | X165: 7 | AO165: 5 | AP165: =T160*Y163+X165*Y164+(AC172-Y163-G185)*S168+K179*G184+(D166-(AC172-G185))*N187 -> -7080.5 | AS165: =T160*Y163*(D166-Y163/2)+X165*Y164*(D166-Y163-Y164/2)+(AC172-Y163-G185)*S168*(D166-Y163-(AC172-Y163-G185)/2)+K179*G184*(D166-(AC172-G185-G184))+(D166-(AC172-G185))*N187*(D166-(AC172-G185))/2 -> 797698.125
D166: 142.5 | AO166: 1 | AP166: =(Y163-D166)*T160+Y164*X165+(AC172-Y163-G185)*S168+N187*G185+G184*K179 -> -7530.5 | AS166: =(Y163-D166)*T160*(Y163-D166)/2+Y164*X165*(Y164/2+Y163-D166)+(AC172-Y163-G185)*S168*((AC172-Y163-G185)/2+Y163-D166)+N187*G185*(AC172-D166-G185/2)+G184*K179*(AC172-G185-G184/2-D166) -> 770339.375
F167: =(N187*G185*(AC172-G185/2)+T160*Y163*Y163/2+X165*Y164*(Y163+Y164/2)+K179*G184*(AC172-G185-G184/2)+(AC172-Y163-G185)*S168*((AC172-Y163-G185)/2+Y163))/((N187*G185+T160*Y163+X165*Y164+K179*G184+(AC172-Y163-G185)*S168)) -> 145.304878 | AO167: 2 | AP167: =(Y164+Y163-D166)*X165+(AC172-G185-D166)*S168+N187*G185+G184*K179 -> 735 | AS167: =(Y164+Y163-D166)*X165*(Y164+Y163-D166)/2+(AC172-G185-D166)*S168*(AC172-G185-D166)/2+N187*G185*(AC172-D166-G185/2)+G184*K179*(AC172-D166-G185-G184/2) -> 210351.75
S168: 7 | U168: mm | AF168: A = | AH168: =((N187*G185+T160*Y163+X165*Y164+K179*G184+(AC172-Y163-G185)*S168))/100 -> 31.57 | AL168: cm² | AO168: 3 | AP168: =(AC172-G185-D166)*S168+N187*G185+G184*K179 -> 1578.5 | AS168: =(AC172-G185-D166)*S168*(AC172-G185-D166)/2+N187*G185*(AC172-G185/2-D166)+G184*K179*(AC172-G185-G184/2-D166) -> 159530.875
AF169: Ix = | AH169: =((T160*Y163^3/12+T160*Y163*(F167-Y163/2)^2)+(X165*Y164^3/12+X165*Y164*(F167-Y163-Y164/2)^2)+(N187*G185^3/12+N187*G185*(F178-G185/2)^2)+(K179*G184^3/12+K179*G184*(F178-G185-G184/2)^2)+(S168*(AC172-Y163-G185)^3/12+S168*(AC172-Y163-G185)*(F167-Y163-(AC172-Y163-G185)/2)^2))/10000 -> 3787.717089 | AM169: cm4 | AO169: 4 | AP169: =(AC172-G185-D166)*S168+(AC172-G185-D166)*K179+N187*G185 -> 2562 | AS169: =(AC172-G185-D166)*S168*(AC172-G185-D166)/2+(AC172-G185-D166)*K179*(AC172-G185-D166)/2+N187*G185*(AC172-G185/2-D166) -> 228621.75
I170: plastik | AC170: mm | AF170: Iy = | AH170: =(G184*K179^3/12+G184*K179*(M175-K179/2)^2+G185*N187^3/12+G185*N187*(M175-N187/2)^2+Y163*T160^3/12+T160*Y163*(U175-T160/2)^2+Y164*X165^3/12+X165*Y164*(U175-X165/2)^2+(AC172-G185-Y163)*S168^3/12+(AC172-G185-Y163)*S168*(U175-T160+S168/2)^2)/10000 -> 210.6784476 | AM170: cm4 | AO170: 5 | AP170: =(AC172-D166)*N187 -> 10237.5 | AS170: =(AC172-D166)*N187*(AC172-D166)/2 -> 806203.125
I171: tarafsız eks. | AF171: Wext = | AI171: =+AH169/(F178/10) -> 244.8504543 | AM171: cm3 | AP171: =IF(D166<=Y163,AP161,IF(AND(Y163<D166,D166<=(Y163+Y164)),AP162,IF(AND((Y163+Y164)<D166,D166<=(AC172-G185-G184)),AP163,IF(AND((AC172-G185-G184)<D166,D166<=(AC172-G185)),AP164,IF(AND((AC172-G185)<D166,D166<=AC172),AP165,"HATALI"))))) -> 1578.5 | AS171: =IF(D166<=Y163,AS161,IF(AND(Y163<D166,D166<=(Y163+Y164)),AS162,IF(AND((Y163+Y164)<D166,D166<=(AC172-G185-G184)),AS163,IF(AND((AC172-G185-G184)<D166,D166<=(AC172-G185)),AS164,IF(AND((AC172-G185)<D166,D166<=AC172),AS165,"HATALI"))))) -> 150675.875
AC172: 300 | AF172: Wexc = | AI172: =+AH169/(F167/10) -> 260.6737736 | AM172: cm3 | AP172: =IF(D166<=Y163,AP166,IF(AND(Y163<D166,D166<=(Y163+Y164)),AP167,IF(AND((Y163+Y164)<D166,D166<=(AC172-G185-G184)),AP168,IF(AND((AC172-G185-G184)<D166,D166<=(AC172-G185)),AP169,IF(AND((AC172-G185)<D166,D166<=AC172),AP170,"HATALI"))))) -> 1578.5 | AS172: =IF(D166<=Y163,AS166,IF(AND(Y163<D166,D166<=(Y163+Y164)),AS167,IF(AND((Y163+Y164)<D166,D166<=(AC172-G185-G184)),AS168,IF(AND((AC172-G185-G184)<D166,D166<=(AC172-G185)),AS169,IF(AND((AC172-G185)<D166,D166<=AC172),AS170,"HATALI"))))) -> 159530.875
M173: ağr.mrk. | AF173: Weyt = | AI173: =+AH170/(U175/10) -> 30.51104791 | AM173: cm3 | AP173: =+AP171-AP172 -> 0 | AS173: =+AS171+AS172 -> 310206.75
L174: x | W174: x | AF174: Weyc = | AI174: =+AH170/(M175/10) -> 32.94418801 | AM174: cm3 | AO174: 1 | AP174: =L158*(G184+G185) -> 1048.475 | AS174: =L158*(G184+G185)*L158/2 -> 32332.34781
M175: =(G184*K179*K179/2+G185*N187*N187/2+T160*Y163*(N187+T160-S168-T160/2)+X165*Y164*(N187+T160-S168-X165/2)+(AC172-Y163-G185)*S168*(N187-S168/2))/(N187*G185+T160*Y163+X165*Y164+K179*G184+(AC172-Y163-G185)*S168) -> 63.95011086 | O175: mm | U175: =+N187+T160-S168-M175 -> 69.04988914 | W175: mm | AF175: ix = | AH175: =SQRT(AH169/AH168) -> 10.95346376 | AK175: cm | AO175: 2 | AP175: =K179*G184+L158*G185 -> 501.725 | AS175: =K179*G184*(L158-K179/2)+L158*G185*L158/2 -> 17385.56969
D176: mm | F176: mm | AF176: iy = | AH176: =SQRT(AH170/AH168) -> 2.583287627 | AK176: cm | AO176: 3 | AP176: =K179*G184+(N187-S168)*G185+(L158-N187+S168)*AC172 -> 1578.5 | AS176: =K179*G184*(L158-K179/2)+(N187-S168)*G185*(L158-(N187-S168)/2)+(L158-N187+S168)*AC172*(L158-N187+S168)/2 -> 19364.14375
K177: mm | AF177: Wpx = | AI177: =+AS173/1000 -> 310.20675 | AM177: cm3 | AO177: 4 | AP177: =K179*G184+N187*G185+(AC172-Y163-G185)*S168+(L158+S168-N187)*Y163 -> 2552.725 | AS177: =K179*G184*(L158-K179/2)+N187*G185*(L158-N187/2)+(AC172-Y163-G185)*S168*(L158-N187+S168/2)+(L158+S168-N187)*Y163*(L158+S168-N187)/2 -> 17744.49469
D178: =+AC172-D166 -> 157.5 | F178: =+AC172-F167 -> 154.695122 | AF178: Wpy = | AI178: =+AS186/1000 -> 45.9108125 | AM178: cm3 | AO178: 5 | AP178: =K179*G184+N187*G185+(AC172-Y163-G185)*S168+(T160-X165)*Y163+(X165-T158)*(Y164+Y163) -> 1587.85 | AS178: =K179*G184*(L158-K179/2)+N187*G185*(L158-N187/2)+(AC172-Y163-G185)*S168*(L158-N187+S168/2)+(T160-X165)*Y163*(T160-T158)/2+(X165-T158)*(Y164+Y163)*(X165-T158)/2 -> 64086.63687
K179: 7 | AF179: sa = Fy = | AI179: 275 | AK179: N/mm² | AO179: 1 | AP179: =(K179-L158)*(G185+G184)+(N187-K179-S168)*G185+AC172*S168+(T160-X165-S168)*Y163+X165*(Y164+Y163) -> 2108.525 | AS179: =(K179-L158)*(G185+G184)*(K179-L158)/2+(N187-K179-S168)*G185*(N187-L158-S168-(N187-S168-K179)/2)+AC172*S168*(N187-S168/2-L158)+(T160-X165-S168)*Y163*((T160-X165-S168)/2+N187-L158)+X165*(Y164+Y163)*(T160+N187-S168-L158-X165/2) -> 39514.87281
AF180: Mnx = | AH180: =+AI179*MIN(AI171,AI172)/1000 -> 67.33387493 | AK180: KNm | AO180: 2 | AP180: =(N187-L158)*G185+(AC172-Y163-G185)*S168+T160*Y163+Y164*X165 -> 2655.275 | AS180: =(N187-L158)*G185*(N187-L158)/2+(AC172-Y163-G185)*S168*(N187-S168/2-L158)+T160*Y163*(T160/2+N187-S168-L158)+Y164*X165*(T160+N187-S168-L158-X165/2) -> 24568.09469
AF181: Mpx = | AH181: =+AI179*AI177/1000 -> 85.30685625 | AK181: KNm | AO181: 3 | AP181: =(N187-L158)*AC172+(T160-S168)*Y163+X165*Y164 -> 1578.5 | AS181: =(N187-L158)*AC172*(N187-L158)/2+(T160-S168)*Y163*(T158-(T160-S168)/2)+X165*Y164*(T158-X165/2) -> 26546.66875
AF182: bf = | AH182: =+AH181/AH180 -> 1.266923318 | AO182: 4 | AP182: =T158*Y163+X165*Y164 -> 604.275 | AS182: =T158*Y163*T158/2+X165*Y164*(T158-X165/2) -> 24927.01969
AO183: 5 | AP183: =T158*(Y164+Y163) -> 1569.15 | AS183: =T158*(Y164+Y163)*T158/2 -> 55959.81188
G184: 10 | I184: mm | AP184: =IF(L158<=K179,AP174,IF(AND(K179<L158,L158<=(N187-S168)),AP175,IF(AND((N187-S168)<L158,L158<=N187),AP176,IF(AND(N187<L158,L158<=(N187-S168+T160-X165)),AP177,IF(AND((N187-S168+T160-X165)<L158,L158<=(N187+T160-S168)),AP178,"HATALI"))))) -> 1578.5 | AS184: =IF(L158<=K179,AS174,IF(AND(K179<L158,L158<=(N187-S168)),AS175,IF(AND((N187-S168)<L158,L158<=N187),AS176,IF(AND(N187<L158,L158<=(N187-S168+T160-X165)),AS177,IF(AND((N187-S168+T160-X165)<L158,L158<=(N187+T160-S168)),AS178,"HATALI"))))) -> 19364.14375
G185: 7 | I185: mm | AP185: =IF(L158<=K179,AP179,IF(AND(K179<L158,L158<=(N187-S168)),AP180,IF(AND((N187-S168)<L158,L158<=N187),AP181,IF(AND(N187<L158,L158<=(N187-S168+T160-X165)),AP182,IF(AND((N187-S168+T160-X165)<L158,L158<=(N187+T160-S168)),AP183,"HATALI"))))) -> 1578.5 | AS185: =IF(L158<=K179,AS179,IF(AND(K179<L158,L158<=(N187-S168)),AS180,IF(AND((N187-S168)<L158,L158<=N187),AS181,IF(AND(N187<L158,L158<=(N187-S168+T160-X165)),AS182,IF(AND((N187-S168+T160-X165)<L158,L158<=(N187+T160-S168)),AS183,"HATALI"))))) -> 26546.66875
P186: y | AP186: =AP184-AP185 -> -1.818989404e-12 | AS186: =+AS184+AS185 -> 45910.8125
N187: 65 | P187: mm
N191: 120
AA192: A = | AC192: =(N191*V194+P202*W199)/100 -> 48 | AG192: cm²
D193: mm | N193: y | AA193: Ix = | AC193: =(N191*V194^3/12+N191*V194*(F196-V194/2)^2+P202*W199^3/12+P202*W199*(F203-W199/2)^2)/10000 -> 1331.578125 | AH193: cm4
F194: mm | V194: 15 | AA194: Iy = | AC194: =(V194*N191^3/12+W199*P202^3/12)/10000 -> 226 | AH194: cm4
D195: 45 | AA195: Wext = | AD195: =+AC193/(F203/10) -> 125.6946903 | AH195: cm3 | AK195: =D195*N191 -> 5400 | AN195: =D195*N191*D195/2 -> 121500
F196: =(N191*V194*V194/2+W199*P202*(W199/2+V194))/(N191*V194+P202*W199) -> 59.0625 | AA196: Wexc = | AD196: =+AC193/(F196/10) -> 225.452381 | AH196: cm3 | AK196: =(V194-D195)*N191+W199*P202 -> -600 | AN196: =(V194-D195)*N191*(V194-D195)/2+W199*P202*(D202-W199/2) -> 189000
J197: plastik | W197: mm | AA197: Weyt = | AD197: =+AC194/(N191/2/10) -> 37.66666667 | AH197: cm3 | AK197: =N191*V194+(D195-V194)*P202 -> 2400 | AN197: =N191*V194*(D195-V194/2)+(D195-V194)*P202*(D195-V194)/2 -> 76500
J198: tarafsız eksen | AA198: Weyc = | AD198: =+AC194/(N191/2/10) -> 37.66666667 | AH198: cm3 | AK198: =D202*P202 -> 2400 | AN198: =D202*P202*D202/2 -> 144000
W199: 150 | AA199: ix = | AC199: =SQRT(AC193/AC192) -> 5.266992589 | AF199: cm | AK199: =IF(D195<=V194,AK195,IF(AND(V194<D195,D195<=(V194+W199)),AK197,"hatalı")) -> 2400 | AN199: =IF(D195<=V194,AN195,IF(AND(V194<D195,D195<=(V194+W199)),AN197,"hatalı")) -> 76500
D200: mm | K200: ağr.mrkz. | T200: x | AA200: iy = | AC200: =SQRT(AC194/AC192) -> 2.169869428 | AF200: cm | AK200: =IF(D195<=V194,AK196,IF(AND(V194<D195,D195<=(V194+W199)),AK198,"hatalı")) -> 2400 | AN200: =IF(D195<=V194,AN196,IF(AND(V194<D195,D195<=(V194+W199)),AN198,"hatalı")) -> 144000
F201: mm | AA201: Wpx = | AD201: =AN201/1000 -> 220.5 | AH201: cm3 | AK201: =+AK199-AK200 -> 0 | AN201: =+AN199+AN200 -> 220500
D202: =+W199+V194-D195 -> 120 | P202: 20 | AA202: Wpy = | AD202: =(2*N191/2*V194*(N191/2/2)+2*W199*P202/2*(P202/2/2))/1000 -> 69 | AH202: cm3
F203: =+W199+V194-F196 -> 105.9375 | AA203: sa = Fy = | AD203: 275 | AF203: N/mm²
AA204: Mnx = | AC204: =+AD203*MIN(AD195,AD196)/1000 -> 34.56603982 | AF204: KNm
AA205: Mpx = | AC205: =+AD203*AD201/1000 -> 60.6375 | AF205: KNm
AA206: bf = | AC206: =+AC205/AC204 -> 1.754250713
N207: y
N210: y | AA210: A = | AC210: =N223*V215/2/100 -> 250 | AG210: cm²
E211: mm | G211: mm | AA211: Ix = | AC211: =N223*V215^3/36/10000 -> 8680.555556 | AH211: cm4 | AL211: =N223*E213/V215 -> 141.4213562
AA212: Iy = | AC212: =(2*V215*(N223/2)^3/12+2*V215*(N223/2)/2*((N223/2)/3)^2)/10000 -> 6944.444444 | AH212: cm4 | AL212: =AL211*E213/2 -> 12500 | AO212: =AL211*E213/2*E213/3 -> 736569.5637
E213: 176.7766953 | G213: =2*V215/3 -> 166.6666667 | V213: mm | AA213: Wext = | AD213: =+AC211/(G219/10) -> 1041.666667 | AH213: cm3 | AL213: =(AL211+N223)/2*E218 -> 12500 | AO213: =(AL211+N223)/2*E218*(2*N223+AL211)/(AL211+N223)*E218/3 -> 483818.848
AA214: Wexc = | AD214: =+AC211/(G213/10) -> 520.8333333 | AH214: cm3 | AL214: =+AL212-AL213 -> -7.464768714e-08 | AO214: =+AO212+AO213 -> 1220388.412
I215: plastik | V215: 250 | AA215: Weyt = | AD215: =+AC212/(N223/2/10) -> 694.4444444 | AH215: cm3
E216: mm | I216: tarafsız eks. | AA216: Weyc = | AD216: =+AC212/(N223/2/10) -> 694.4444444 | AH216: cm3
G217: mm | AA217: ix = | AC217: =SQRT(AC211/AC210) -> 5.89255651 | AF217: cm
E218: =+V215-E213 -> 73.2233047 | I218: ağ.mrk. | T218: x | AA218: iy = | AC218: =SQRT(AC212/AC210) -> 5.270462767 | AF218: cm
G219: =+V215/3 -> 83.33333333 | AA219: Wpx = | AD219: =AO214/1000 -> 1220.388412 | AH219: cm3
AA220: Wpy = | AD220: =(2*V215*(N223/2)/2*(N223/2)/3)/1000 -> 833.3333333 | AH220: cm3
AA221: sa = Fy = | AD221: 275 | AF221: N/mm²
N222: y | AA222: Mnx = | AC222: =+AD221*MIN(AD213,AD214)/1000 -> 143.2291667 | AF222: KNm
N223: 200 | Q223: mm | AA223: Mpx = | AC223: =+AD221*AD219/1000 -> 335.6068132 | AF223: KNm
AA224: bf = | AC224: =+AC223/AC222 -> 2.343145751
N227: 120
I229: 30 | N229: =+N227-I229-S229 -> 60 | S229: =+I229 -> 30 | AA229: A = | AC229: =(N227*V232+2*S240*W237)/100 -> 78 | AG229: cm²
AA230: Ix = | AC230: =(N227*V232^3/12+N227*V232*(F234-V232/2)^2+2*(S240*W237^3/12+S240*W237*(F241-W237/2)^2))/10000 -> 2070.778846 | AH230: cm4
D231: mm | N231: y | AA231: Iy = | AC231: =(V232*N227^3/12+2*(W237*S240^3/12+S240*W237*(N229/2-M240/2)^2))/10000 -> 476 | AH231: cm4
F232: mm | V232: 15 | AA232: Wext = | AD232: =+AC230/(F241/10) -> 220.2055215 | AH232: cm3
D233: 67.5 | AA233: Wexc = | AD233: =+AC230/(F234/10) -> 291.8170732 | AH233: cm3 | AK233: =D233*N227 -> 8100 | AN233: =D233*N227*D233/2 -> 273375
F234: =(N227*V232*V232/2+2*W237*S240*(W237/2+V232))/(N227*V232+2*S240*W237) -> 70.96153846 | AA234: Weyt = | AD234: =+AC231/(N227/2/10) -> 79.33333333 | AH234: cm3 | AK234: =(V232-D233)*N227+2*W237*S240 -> -300 | AN234: =(V232-D233)*N227*(V232-D233)/2+2*W237*S240*(D240-W237/2) -> 300375
M235: plastik | W235: mm | AA235: Weyc = | AD235: =+AC231/(N227/2/10) -> 79.33333333 | AH235: cm3 | AK235: =N227*V232+2*(D233-V232)*S240 -> 3900 | AN235: =N227*V232*(D233-V232/2)+2*(D233-V232)*S240*(D233-V232)/2 -> 163125
M236: tarafsız eksen | AA236: ix = | AC236: =SQRT(AC230/AC229) -> 5.152518486 | AF236: cm | AK236: =2*D240*S240 -> 3900 | AN236: =2*D240*S240*D240/2 -> 190125
W237: 150 | AA237: iy = | AC237: =SQRT(AC231/AC229) -> 2.47033684 | AF237: cm | AK237: =IF(D233<=V232,AK233,IF(AND(V232<D233,D233<=(V232+W237)),AK235,"hatalı")) -> 3900 | AN237: =IF(D233<=V232,AN233,IF(AND(V232<D233,D233<=(V232+W237)),AN235,"hatalı")) -> 163125
... 63 more rows
